bitfinex/quotes_BTCUSD_20251224
["timestamp","ask_amount","ask_price","bid_price","bid_amount"]
[1766598558133,0.01143262,87469.0,87460.0,0.01143379]
[1766598558514,0.01143262,87469.0,87459.0,0.05716958]
[1766598558724,0.01143275,87468.0,87459.0,0.0686035]
[1766598558947,0.06859546,87470.0,87461.0,0.01143366]
[1766598558948,0.01143249,87470.0,87461.0,0.01143366]
[1766598559647,0.01143236,87471.0,87461.0,0.01143366]
[1766598560175,0.01143236,87471.0,87462.0,0.01143353]
[1766598560457,0.01148,87472.0,87463.0,0.05716652]
[1766598560615,0.01148,87472.0,87465.0,0.01143314]
[1766598560810,0.01148,87472.0,87464.0,0.06859962]
[1766598561017,0.01148,87472.0,87465.0,0.01143314]
[1766598561241,0.02291222,87472.0,87462.0,0.01143353]
[1766598561562,0.02291222,87472.0,87461.0,0.06860142]
[1766598561563,0.01143249,87470.0,87461.0,0.06860142]
[1766598561926,0.01143236,87471.0,87462.0,0.01143353]
[1766598562356,0.01143275,87468.0,87459.0,0.01143392]
[1766598562683,0.000549,87459.0,87457.0,0.01148]
[1766598563041,0.01143288,87467.0,87457.0,0.02291419]
[1766598563243,0.06859732,87467.0,87457.0,0.08008466]
[1766598563648,0.01143262,87469.0,87457.0,0.01148]
[1766598563854,0.06859781,87467.0,87457.0,0.01148]
[1766598564050,0.0685981,87466.0,87457.0,0.02291419]
[1766598564229,0.01143301,87466.0,87457.0,0.02291419]
[1766598564424,0.11838,87467.0,87458.0,0.0686042]
[1766598564633,0.11838,87467.0,87460.0,0.06860259]
[1766598564833,0.11838,87467.0,87460.0,0.01143379]
[1766598565179,0.12981288,87467.0,87458.0,0.01143405]
[1766598565384,0.11838,87467.0,87458.0,0.06860391]
[1766598565617,0.11838,87467.0,87460.0,0.01143379]
[1766598565766,0.11838,87467.0,87459.0,0.01143392]
[1766598566171,0.12981288,87467.0,87458.0,0.06860391]
[1766598566725,0.06859542,87471.0,87461.0,0.01143366]
[1766598566925,0.3928366,87470.0,87459.0,0.01143392]
[1766598567099,0.05716381,87468.0,87459.0,0.01143392]
[1766598567423,0.05716381,87468.0,87458.0,0.06860419]
[1766598567424,0.01143288,87467.0,87458.0,0.06860419]
[1766598567568,0.06859604,87469.0,87459.0,0.06860319]
[1766598567798,0.17554459,87467.0,87457.0,0.08008509]
[1766598568014,0.01143275,87468.0,87458.0,0.06860422]
[1766598568416,0.01143275,87468.0,87459.0,0.05716964]
[1766598568635,0.01143275,87468.0,87457.0,0.01148]
[1766598568898,0.01143275,87468.0,87459.0,0.01143392]
[1766598569101,0.000549,87459.0,87457.0,0.02291419]
[1766598569741,0.01143314,87465.0,87457.0,0.01148]
[1766598569942,0.06859894,87465.0,87457.0,0.01148]
[1766598570147,0.12494,87466.0,87458.0,0.01143405]
[1766598570352,0.01143314,87465.0,87457.0,0.02291419]
[1766598570648,0.01143314,87465.0,87457.0,0.01148]
[1766598571171,0.01143405,87458.0,87449.0,0.01143523]
[1766598571399,0.12494,87456.0,87447.0,0.00011]
[1766598571578,0.12494,87456.0,87448.0,0.01143536]
[1766598571779,0.01143445,87455.0,87447.0,0.00011]
[1766598571958,0.13637432,87456.0,87447.0,0.00011]
[1766598572164,0.12494,87456.0,87448.0,0.01143536]
[1766598572392,0.13637432,87456.0,87447.0,0.06872287]
[1766598573248,0.18211191,87456.0,87447.0,0.00011]
[1766598573915,0.01143445,87455.0,87447.0,0.00011]
[1766598574767,0.01143458,87454.0,87447.0,0.00011]
[1766598576169,0.19354623,87456.0,87447.0,0.00011]
[1766598576372,0.12494,87456.0,87447.0,0.00011]
[1766598576796,0.12494,87456.0,87448.0,0.01143536]
[1766598577344,0.000549,87448.0,87447.0,0.00011]
[1766598577575,0.11923,87453.0,87447.0,0.00011]
[1766598577702,0.01143445,87455.0,87439.0,0.01143654]
[1766598577703,0.05717552,87450.0,87440.0,0.01154271]
[1766598577929,0.11923,87450.0,87443.0,0.05718007]
[1766598578131,0.11923,87450.0,87442.0,0.06866058]
[1766598578334,0.1306651,87450.0,87442.0,0.01148]
[1766598578539,0.11923,87450.0,87442.0,0.02291615]
[1766598578759,0.1306651,87450.0,87442.0,0.01148]
[1766598578957,0.1306651,87450.0,87442.0,0.02291615]
[1766598578958,0.11923,87450.0,87442.0,0.02291615]
[1766598579157,0.01143523,87449.0,87442.0,0.01148]
[1766598579357,0.01143523,87449.0,87440.0,0.06872432]
[1766598579358,0.11923,87447.0,87437.0,0.0114368]
[1766598579584,0.11923,87447.0,87438.0,0.05718337]
[1766598579874,0.11923,87447.0,87439.0,0.01143654]
[1766598580305,0.01143602,87443.0,87437.0,0.00035426]
[1766598580513,0.01143602,87443.0,87426.0,0.01143824]
[1766598580514,0.11923,87436.0,87426.0,0.01143824]
[1766598580626,0.11958411,87436.0,87431.0,0.01143759]
[1766598580832,0.11958411,87436.0,87431.0,0.06862515]
[1766598581035,0.11958411,87436.0,87430.0,0.0571885]
[1766598581036,0.11958411,87436.0,87430.0,0.06862626]
[1766598581270,0.11958411,87436.0,87431.0,0.01143759]
[1766598581445,0.11958411,87436.0,87430.0,0.01143772]
[1766598581656,0.11958411,87436.0,87431.0,0.05718779]
[1766598581857,0.00035411,87436.0,87433.0,0.06862271]
[1766598582280,0.00035411,87436.0,87434.0,0.05718542]
[1766598582498,0.00035411,87436.0,87431.0,0.0686254]
[1766598582999,0.00035411,87436.0,87433.0,0.01143732]
[1766598583534,0.00035411,87436.0,87432.0,0.06862463]
[1766598583819,0.00035411,87436.0,87432.0,0.01143745]
[1766598584692,0.00035411,87436.0,87432.0,0.06862472]
[1766598584859,0.00035411,87436.0,87433.0,0.01143732]
[1766598585817,0.00035411,87436.0,87433.0,0.06862371]
[1766598586196,0.00035411,87436.0,87434.0,0.05718597]
[1766598586555,0.00035411,87436.0,87435.0,0.05718533]
[1766598586758,0.06860755,87454.0,87435.0,0.00114358]
[1766598586956,0.01148,87453.0,87446.0,0.06861321]
[1766598587187,0.13066432,87456.0,87446.0,0.06861321]
[1766598587188,0.01148,87452.0,87446.0,0.01154198]
[1766598587698,0.01148,87452.0,87446.0,0.00010636]
[1766598587841,0.01148,87452.0,87447.0,0.01143549]
[1766598588037,0.01148,87452.0,87446.0,0.01154198]
[1766598588709,0.01148,87454.0,87448.0,0.01143536]
[1766598589080,0.000549,87448.0,87446.0,0.00010636]
[1766598589479,0.13071,87454.0,87446.0,0.01154198]
[1766598589701,0.13071,87454.0,87447.0,0.01143549]
[1766598590110,0.13071,87454.0,87446.0,0.06871987]
[1766598590271,0.13071,87454.0,87447.0,0.01143549]
[1766598590470,0.13071,87454.0,87448.0,0.05717682]
[1766598590721,0.13071,87454.0,87447.0,0.06861282]
[1766598590868,0.13071,87454.0,87446.0,0.06871892]
[1766598591065,0.13071,87454.0,87446.0,0.00010636]
[1766598591506,0.14214458,87454.0,87446.0,3.6e-07]
[1766598591924,0.13071,87454.0,87446.0,0.01143598]
[1766598592130,0.01143471,87453.0,87446.0,3.6e-07]
[1766598592737,0.13071,87454.0,87446.0,3.6e-07]
[1766598592939,0.13071,87454.0,87447.0,0.05717694]
[1766598593143,0.13071,87454.0,87449.0,0.01143523]
[1766598593344,0.000443,87449.0,87447.0,0.06861243]
[1766598593724,0.13071,87454.0,87448.0,0.01143536]
[1766598594329,0.13071,87454.0,87447.0,0.06861243]
[1766598594532,0.13071,87454.0,87446.0,3.6e-07]
[1766598594533,0.18788347,87454.0,87446.0,3.6e-07]
[1766598594733,0.000443,87447.0,87446.0,3.6e-07]
[1766598594916,0.13071,87454.0,87446.0,0.01143598]
[1766598595117,0.14214458,87454.0,87446.0,3.6e-07]
[1766598595337,0.13071,87454.0,87446.0,0.0686136]
[1766598596010,0.13071,87454.0,87447.0,0.01143549]
[1766598596782,0.000443,87447.0,87446.0,3.6e-07]
[1766598597058,0.11923,87444.0,87442.0,0.01148]
[1766598597267,0.11931906,87444.0,87438.0,0.01148]
[1766598598748,0.01143654,87439.0,87436.0,0.00011]
[1766598598953,0.12039,87437.0,87429.0,0.01148]
[1766598599157,0.12039,87437.0,87431.0,0.01143759]
[1766598599403,0.12039,87437.0,87433.0,0.01143732]
[1766598599617,0.120284,87437.0,87431.0,0.01143759]
[1766598599830,0.120284,87437.0,87433.0,0.01143732]
[1766598600034,0.120284,87437.0,87432.0,0.06862471]
[1766598600035,0.120284,87437.0,87432.0,0.01143745]
[1766598600243,0.120284,87437.0,87434.0,0.01143719]
[1766598600244,0.111644,87437.0,87434.0,0.01143719]
[1766598600470,0.01148,87443.0,87436.0,0.01143693]
[1766598600681,0.12039,87441.0,87431.0,0.01143759]
[1766598600883,0.000549,87436.0,87431.0,0.06862541]
[1766598601087,0.12039,87440.0,87430.0,0.01143772]
[1766598601498,0.01148,87443.0,87435.0,0.01143706]
[1766598601701,0.01148,87443.0,87434.0,0.0686231]
[1766598601702,0.01143615,87442.0,87434.0,0.01143719]
[1766598601831,0.06861752,87442.0,87433.0,0.01143732]
[1766598602039,0.01143628,87441.0,87432.0,0.01143745]
[1766598602449,0.12039,87442.0,87434.0,0.01143719]
[1766598603047,0.12039,87442.0,87435.0,0.06862181]
[1766598603263,0.12039,87442.0,87434.0,0.01143719]
[1766598603680,0.12039,87442.0,87432.0,0.05718703]
[1766598603967,0.01148,87443.0,87436.0,0.01143693]
[1766598604172,0.01148,87443.0,87442.0,0.00055]
[1766598604795,0.01148,87443.0,87438.0,0.01143667]
[1766598605381,0.24012943,87453.0,87438.0,0.01143667]
[1766598605382,0.01143445,87455.0,87443.0,0.01198602]
[1766598605583,0.01143458,87454.0,87445.0,0.01143575]
[1766598605929,0.12039,87453.0,87433.0,0.05718609]
[1766598606134,0.01143615,87442.0,87432.0,0.01143745]
[1766598606345,0.05718174,87441.0,87431.0,0.01143759]
[1766598606551,0.13182628,87441.0,87431.0,0.0686253]
[1766598606751,0.12039,87441.0,87432.0,0.01143745]
[1766598606982,0.12039,87441.0,87427.0,0.01143811]
[1766598607200,0.12039,87437.0,87430.0,0.01143772]
[1766598607406,0.12039,87437.0,87433.0,0.01143732]
[1766598607611,0.11984,87437.0,87430.0,0.0686259]
[1766598607783,0.01148,87443.0,87433.0,0.01143732]
[1766598607993,0.01143628,87441.0,87431.0,0.06862432]
[1766598608200,0.01143628,87441.0,87432.0,0.01143745]
[1766598608410,0.01143628,87441.0,87432.0,0.06862474]
[1766598608599,0.18900744,87442.0,87428.0,0.01148]
[1766598608600,0.01143719,87434.0,87428.0,0.01148]
[1766598608814,0.01148,87443.0,87424.0,0.01159]
[1766598608815,0.17757685,87433.0,87424.0,0.01159]
[1766598609022,0.12039,87424.0,87402.0,0.01144138]
[1766598609236,0.13182994,87413.0,87404.0,0.00983138]
[1766598609442,0.12039,87413.0,87409.0,0.01144046]
[1766598609603,0.12039,87413.0,87408.0,0.0114406]
[1766598609815,0.12039,87413.0,87409.0,0.01144046]
[1766598609974,0.12039,87413.0,87407.0,0.01144073]
[1766598610181,0.12039,87413.0,87408.0,0.0114406]
[1766598610400,0.12039,87413.0,87409.0,0.01144046]
[1766598610624,0.12039,87413.0,87408.0,0.06864357]
[1766598610827,0.12039,87413.0,87408.0,0.0114406]
[1766598611029,0.01148,87417.0,87409.0,0.01144046]
[1766598611229,0.13187,87417.0,87411.0,0.0114402]
[1766598611525,0.13187,87417.0,87410.0,0.01144033]
[1766598612160,0.13187,87417.0,87411.0,0.0114402]
[1766598612479,0.13187,87417.0,87409.0,0.01144046]
[1766598612836,0.13187,87417.0,87409.0,0.05720232]
[1766598613058,0.13187,87417.0,87410.0,0.01144033]
[1766598613234,0.13187,87417.0,87409.0,0.01144046]
[1766598614044,0.14330942,87417.0,87407.0,0.05720365]
[1766598614260,0.01143955,87416.0,87405.0,0.01144099]
[1766598614511,0.000549,87405.0,87401.0,0.06864888]
[1766598614723,0.12039,87410.0,87402.0,0.01144138]
[1766598614927,0.12039,87410.0,87403.0,0.02292125]
[1766598615378,0.12039,87410.0,87404.0,0.01144112]
[1766598615532,0.12039,87410.0,87403.0,0.01148]
[1766598615745,0.12039,87410.0,87370.0,0.10203144]
[1766598615746,0.12039,87402.0,87395.0,0.0114423]
[1766598615943,0.12039,87402.0,87395.0,0.0229223]
[1766598616184,0.12039,87402.0,87397.0,0.06865205]
[1766598616383,0.12039,87402.0,87399.0,0.01144177]
[1766598617576,0.12039,87402.0,87398.0,0.06865143]
[1766598617952,0.12039,87402.0,87399.0,0.06865065]
[1766598618160,0.12039,87409.0,87400.0,0.06864978]
[1766598618392,0.12039,87409.0,87401.0,0.01144151]
[1766598618545,0.12039,87409.0,87400.0,0.06864978]
[1766598619227,0.12039,87409.0,87402.0,0.05720692]
[1766598619461,0.12039,87409.0,87401.0,0.06864904]
[1766598619629,0.12039,87409.0,87401.0,0.01144151]
[1766598620184,0.12039,87409.0,87400.0,0.01144164]
[1766598620384,0.0114406,87408.0,87397.0,0.05720964]
[1766598620588,0.12039,87408.0,87400.0,0.01144164]
[1766598620790,0.12039,87408.0,87401.0,0.06864891]
[1766598621055,0.12039,87408.0,87402.0,0.01144138]
[1766598621384,0.12039,87408.0,87403.0,0.01144125]
[1766598621582,0.12039,87408.0,87401.0,0.06864891]
[1766598622062,0.12039,87408.0,87402.0,0.01144138]
[1766598622942,0.12039,87408.0,87400.0,0.01144164]
[1766598623367,0.12039,87408.0,87401.0,0.01144151]
[1766598623707,0.12039,87408.0,87402.0,0.01144138]
[1766598624129,0.01148,87412.0,87403.0,0.01144125]
[1766598624329,0.01148,87412.0,87403.0,0.06864743]
[1766598624534,0.01148,87412.0,87404.0,0.01144112]
[1766598624851,0.02292007,87412.0,87403.0,0.01144125]
[1766598625029,0.02292007,87412.0,87403.0,0.06864737]
[1766598625232,0.02292007,87412.0,87403.0,0.01144125]
[1766598625428,0.02292007,87412.0,87402.0,0.06864787]
[1766598625429,0.0114402,87411.0,87402.0,0.01144138]
[1766598625635,0.0114402,87411.0,87402.0,0.01179549]
[1766598626149,0.06864123,87411.0,87402.0,0.01179549]
[1766598626351,0.06864123,87411.0,87402.0,0.00035411]
[1766598626528,0.05720217,87410.0,87402.0,0.00035411]
[1766598627080,0.0686425,87410.0,87402.0,0.00035411]
[1766598627510,0.01144046,87409.0,87402.0,0.00035411]
[1766598627713,0.06864296,87409.0,87402.0,0.00035411]
[1766598628732,0.01144086,87406.0,87402.0,6.209e-05]
[1766598628926,0.06864465,87407.0,87402.0,6.209e-05]
[1766598629338,0.06864465,87407.0,87402.0,9e-08]
[1766598629717,0.1922041,87408.0,87402.0,9e-08]
[1766598629931,0.01144099,87405.0,87402.0,9e-08]
[1766598630318,0.06864595,87405.0,87402.0,9e-08]
[1766598630513,0.01144099,87405.0,87402.0,9e-08]
[1766598630716,0.06864518,87406.0,87402.0,9e-08]
[1766598630717,0.01144086,87406.0,87402.0,9e-08]
[1766598631319,0.01144099,87405.0,87402.0,9e-08]
[1766598631988,0.19220368,87408.0,87402.0,9e-08]
[1766598632277,0.12356,87408.0,87402.0,9e-08]
[1766598632486,0.0114402,87411.0,87402.0,9e-08]
[1766598632784,0.01144086,87406.0,87402.0,9e-08]
[1766598632986,0.06864294,87409.0,87402.0,9e-08]
[1766598633188,0.24024659,87411.0,87402.0,0.01144147]
[1766598633189,0.12356,87410.0,87402.0,0.01144147]
[1766598633600,0.12356,87410.0,87403.0,0.01144125]
[1766598633769,0.01148,87412.0,87410.0,6.2e-05]
[1766598634096,0.01148,87412.0,87407.0,0.06864431]
[1766598634254,0.01148,87412.0,87405.0,0.05720489]
[1766598634459,0.01148,87412.0,87404.0,0.06864617]
[1766598634690,0.01148,87412.0,87406.0,0.01144086]
[1766598635075,0.01148,87412.0,87405.0,0.01144099]
[1766598635276,0.01148,87412.0,87406.0,0.01144086]
[1766598635479,0.13504,87416.0,87409.0,0.01144046]
[1766598635728,0.13504,87416.0,87409.0,0.06864278]
[1766598635891,0.13504,87416.0,87408.0,0.06864337]
[1766598636096,0.13504,87416.0,87408.0,0.0114406]
[1766598636527,0.13504,87416.0,87409.0,0.01144046]
[1766598636731,0.13504,87416.0,87408.0,0.06864351]
[1766598636930,0.13504,87416.0,87409.0,0.01144046]
[1766598637717,0.13504,87416.0,87409.0,0.06864261]
[1766598637918,0.13504,87416.0,87410.0,0.06864188]
[1766598638119,0.13504,87416.0,87409.0,0.06864261]
[1766598638299,0.13504,87416.0,87410.0,0.01144033]
[1766598638496,0.13504,87416.0,87407.0,0.01144073]
[1766598639069,0.000549,87407.0,87404.0,0.01148]
[1766598639185,0.000549,87407.0,87396.0,0.01144217]
[1766598639186,0.12356,87406.0,87399.0,3.5e-07]
[1766598639393,0.0114406,87408.0,87400.0,0.01148]
[1766598639707,0.01144046,87409.0,87400.0,0.02292164]
[1766598639911,0.01144033,87410.0,87401.0,0.01144151]
[1766598640450,0.01144046,87409.0,87400.0,0.02292164]
[1766598641414,0.06864253,87410.0,87401.0,0.01144151]
[1766598641613,0.01144033,87410.0,87400.0,0.02292164]
[1766598641837,0.05720567,87404.0,87400.0,0.01148]
[1766598642059,0.11577,87400.0,87371.0,0.14141303]
[1766598642247,0.11577,87395.0,87383.0,0.01144387]
[1766598642454,0.11577,87395.0,87377.0,0.04576]
[1766598642455,0.01144308,87389.0,87379.0,0.01144439]
[1766598642630,0.11577,87389.0,87382.0,0.011444]
[1766598642997,0.11577,87389.0,87384.0,0.01144374]
[1766598643116,0.12721321,87388.0,87379.0,0.01158633]
[1766598643317,0.11592,87384.0,87379.0,0.01158633]
[1766598643518,0.11577,87384.0,87379.0,0.00010633]
[1766598643719,0.12721413,87381.0,87371.0,0.01144544]
[1766598643928,0.11577,87380.0,87371.0,0.01148]
[1766598644131,0.11577,87380.0,87373.0,0.01144518]
[1766598644382,0.11577,87380.0,87372.0,0.01144531]
[1766598644622,0.11577,87380.0,87373.0,0.01144518]
[1766598646168,0.01144439,87379.0,87371.0,0.01148]
[1766598646373,0.12721439,87379.0,87371.0,0.01148]
[1766598646795,0.12721452,87378.0,87371.0,0.01148]
[1766598647025,0.12696774,87378.0,87371.0,0.01148]
[1766598647349,0.01144505,87374.0,87371.0,0.01133]
[1766598647473,0.12721518,87373.0,87366.0,0.01168]
[1766598647828,0.11577,87373.0,87366.0,0.01168]
[1766598648447,0.11577,87373.0,87367.0,0.01144596]
[1766598648586,0.11577,87373.0,87366.0,0.0231261]
[1766598648795,0.11577,87373.0,87367.0,0.01144596]
[1766598649081,0.11577,87379.0,87370.0,0.01144557]
[1766598649475,0.11577,87379.0,87371.0,0.01144544]
[1766598649684,0.01144452,87378.0,87370.0,0.01144557]
[1766598649892,0.18443638,87379.0,87370.0,0.01144557]
[1766598650298,0.11577,87379.0,87370.0,0.01144557]
[1766598650594,0.01144452,87378.0,87370.0,0.01144557]
[1766598651069,0.0114461,87366.0,87354.0,0.03218]
[1766598651371,0.0114461,87366.0,87352.0,0.0002]
[1766598651372,0.05723452,87360.0,87355.0,0.0004]
[1766598651575,0.01144675,87361.0,87356.0,0.01148]
[1766598651939,0.06868065,87361.0,87356.0,0.01148]
[1766598652178,0.06868196,87360.0,87356.0,0.01148]
[1766598652566,0.12721675,87361.0,87356.0,0.01148]
[1766598652946,0.01144701,87359.0,87356.0,0.01148]
[1766598653302,0.18445055,87361.0,87356.0,0.01148]
[1766598653537,0.01144688,87360.0,87356.0,0.01148]
[1766598653739,0.12721675,87361.0,87355.0,0.0004]
[1766598654079,0.01144688,87360.0,87355.0,0.0004]
[1766598654484,0.11577,87361.0,87355.0,0.0004]
[1766598654701,0.12721675,87361.0,87355.0,0.0004]
[1766598655302,0.01144688,87360.0,87355.0,0.0004]
[1766598656060,0.18445086,87361.0,87355.0,0.0004]
[1766598656248,0.06868133,87360.0,87355.0,0.0004]
[1766598657259,0.05723689,87357.0,87355.0,1e-06]
[1766598657432,0.05723705,87356.0,87355.0,1e-06]
[1766598658046,0.17301229,87348.0,87347.0,1e-08]
[1766598658521,0.11577,87348.0,87347.0,1e-08]
[1766598658723,0.17301229,87348.0,87347.0,1e-08]
[1766598659826,0.11577,87348.0,87347.0,1e-08]
[1766598660156,0.114671,87348.0,87347.0,1e-08]
[1766598660868,0.01148,87351.0,87348.0,0.01144845]
[1766598661073,0.01148,87351.0,87347.0,1e-08]
[1766598662406,0.01148,87352.0,87347.0,1e-08]
[1766598663908,0.02292793,87352.0,87347.0,1e-08]
[1766598664117,0.01148,87352.0,87347.0,1e-08]
[1766598664751,0.06868927,87350.0,87347.0,1e-08]
[1766598664982,0.05724229,87348.0,87347.0,1e-08]
[1766598665191,0.19174625,87341.0,87336.0,0.01148]
[1766598665368,0.19174625,87341.0,87336.0,0.01158629]
[1766598665369,0.13449937,87341.0,87336.0,0.01158629]
[1766598665599,0.19174658,87341.0,87336.0,0.01158629]
[1766598666235,0.0114495,87340.0,87336.0,0.01158629]
[1766598667226,0.12305,87341.0,87336.0,0.01158629]
[1766598667610,0.0114495,87340.0,87336.0,0.01158629]
[1766598667814,0.12305,87341.0,87336.0,0.01158629]
[1766598668094,0.05724884,87338.0,87336.0,0.00010629]
[1766598668222,0.0114495,87340.0,87336.0,2.9e-07]
[1766598668576,0.13449937,87341.0,87336.0,2.9e-07]
[1766598668781,0.0114495,87340.0,87336.0,2.9e-07]
[1766598668950,0.06869835,87339.0,87336.0,2.9e-07]
[1766598669140,0.06869835,87339.0,87329.0,0.01156094]
[1766598669141,0.01145055,87332.0,87329.0,2.9e-07]
[1766598669342,0.01145055,87332.0,87329.0,4.09e-06]
[1766598669343,0.18030409,87330.0,87329.0,4.09e-06]
[1766598669941,0.12305,87330.0,87329.0,4.09e-06]
[1766598670594,0.18030409,87330.0,87329.0,4.09e-06]
[1766598671001,0.12305,87330.0,87329.0,4.09e-06]
[1766598671435,0.18030409,87330.0,87329.0,4.09e-06]
[1766598671662,0.19178409,87330.0,87329.0,4.09e-06]
[1766598672950,0.19178409,87330.0,87313.0,0.0004]
[1766598672951,0.18031458,87314.0,87313.0,1e-08]
[1766598673154,0.01145331,87311.0,87306.0,0.0002]
[1766598673381,0.01145488,87299.0,87296.0,1e-08]
[1766598673580,0.05727728,87295.0,87293.0,1e-08]
[1766598673996,0.12305,87294.0,87293.0,1e-08]
[1766598675515,0.12305,87284.0,87275.0,0.01156803]
[1766598675720,0.01148,87283.0,87278.0,0.01145764]
[1766598675934,0.13450527,87296.0,87286.0,0.01145659]
[1766598676161,0.01148,87295.0,87289.0,0.06873671]
[1766598676372,0.01148,87295.0,87283.0,0.01145698]
[1766598676373,0.0229354,87295.0,87283.0,0.01145698]
[1766598676583,0.01145554,87294.0,87282.0,0.01145711]
[1766598676796,0.01145554,87294.0,87284.0,0.01145685]
[1766598677004,0.01145567,87293.0,87283.0,0.0688482]
[1766598677215,0.01145554,87294.0,87283.0,0.0688482]
[1766598677425,0.01145567,87293.0,87283.0,0.01156338]
[1766598677634,0.01148,87295.0,87286.0,0.01145659]
[1766598677855,0.01148,87294.0,87289.0,0.22912394]
[1766598678067,0.01148,87294.0,87288.0,0.02365]
[1766598678068,0.01148,87299.0,87296.0,0.01145527]
[1766598678893,0.01148,87302.0,87294.0,0.06873316]
[1766598679118,0.01148,87302.0,87293.0,0.06873338]
[1766598679346,0.13453,87302.0,87293.0,0.01145567]
[1766598679559,0.01145567,87293.0,87284.0,0.01145685]
[1766598679768,0.000549,87293.0,87286.0,0.00025197]
[1766598680127,0.01200467,87293.0,87286.0,0.00025197]
[1766598680486,0.123599,87293.0,87286.0,0.00025197]
[1766598681507,0.13505467,87293.0,87286.0,0.00025197]
[1766598681677,0.01145593,87291.0,87286.0,0.00025197]
[1766598681856,0.13505467,87293.0,87286.0,0.00025197]
[1766598682642,0.0114558,87292.0,87286.0,0.00025197]
[1766598682839,0.13505467,87293.0,87286.0,0.00025197]
[1766598683049,0.12305,87291.0,87286.0,1.97e-06]
[1766598683247,0.12305,87288.0,87279.0,0.01148]
[1766598683430,0.12305,87288.0,87280.0,0.06874408]
[1766598683635,0.12305,87288.0,87279.0,0.01154089]
[1766598683856,0.12305,87288.0,87280.0,0.01145737]
[1766598684065,0.12305,87288.0,87281.0,0.06874331]
[1766598684265,0.01148,87289.0,87284.0,0.01145685]
[1766598684719,0.01148,87289.0,87283.0,0.01145698]
[1766598684913,0.01148,87289.0,87284.0,0.01145685]
[1766598685174,0.01148,87289.0,87285.0,0.01145672]
[1766598685354,0.01148,87289.0,87284.0,0.06874105]
[1766598685670,0.01148,87289.0,87285.0,0.01145672]
[1766598685872,0.01148,87289.0,87285.0,0.06874025]
[1766598686080,0.01148,87291.0,87286.0,0.01145659]
[1766598686247,0.01148,87291.0,87285.0,0.06874025]
[1766598686450,0.01148,87291.0,87284.0,0.01145685]
[1766598686676,0.01148,87291.0,87279.0,0.02299839]
[1766598686876,0.01148,87291.0,87282.0,0.01145711]
[1766598687053,0.13453,87291.0,87281.0,0.01145724]
[1766598687251,0.14598593,87291.0,87281.0,0.01145724]
[1766598687463,0.13453,87291.0,87283.0,0.01145698]
[1766598687651,0.13453,87291.0,87282.0,0.01145711]
[1766598687997,0.13453,87291.0,87281.0,0.01145724]
[1766598688148,0.13453,87291.0,87282.0,0.01145711]
[1766598688351,0.13453,87291.0,87280.0,0.01145737]
[1766598688549,0.12915645,87287.0,87279.0,0.01154089]
[1766598688871,0.12915659,87286.0,87279.0,0.01154089]
[1766598689073,0.1177,87286.0,87279.0,0.01154089]
[1766598689485,0.12918,87291.0,87281.0,0.01145724]
[1766598689684,0.01145606,87290.0,87280.0,0.01145737]
[1766598689859,0.01145619,87289.0,87279.0,0.08028581]
[1766598690066,0.06873718,87289.0,87279.0,0.02299839]
[1766598690293,0.01145619,87289.0,87279.0,0.02299839]
[1766598690516,0.01145632,87288.0,87279.0,0.01154089]
[1766598690742,0.12918,87291.0,87279.0,0.01154089]
[1766598691011,0.14063593,87291.0,87281.0,0.01145724]
[1766598691241,0.12918,87291.0,87282.0,0.01145711]
[1766598691630,0.14063593,87291.0,87282.0,0.01145711]
[1766598691831,0.14063593,87291.0,87281.0,0.01145724]
[1766598692514,0.1177,87288.0,87278.0,2.21e-06]
[1766598692715,0.1177,87284.0,87278.0,0.00010875]
[1766598693330,0.12915632,87288.0,87278.0,0.00010875]
[1766598693469,0.18643852,87288.0,87278.0,0.00010875]
[1766598693670,0.05728229,87287.0,87278.0,0.00010875]
[1766598693871,0.06873874,87287.0,87278.0,0.00010875]
[1766598694117,0.1177,87287.0,87278.0,0.01156639]
[1766598694328,0.1177,87287.0,87279.0,0.0687448]
[1766598694706,0.1177,87287.0,87280.0,0.01145737]
[1766598694915,0.01148,87291.0,87285.0,0.01145672]
[1766598695139,0.01148,87291.0,87282.0,0.01145711]
[1766598695319,0.000549,87293.0,87284.0,0.01145685]
[1766598695531,0.04619999,87313.0,87298.0,0.01145501]
[1766598695532,0.1177,87303.0,87298.0,0.01145501]
[1766598695709,0.1177,87311.0,87303.0,0.01145436]
[1766598695904,0.1177,87311.0,87304.0,0.01145422]
[1766598696112,0.01145396,87306.0,87299.0,0.01148]
[1766598696336,0.01145383,87307.0,87299.0,0.01148]
[1766598696537,0.0114537,87308.0,87299.0,0.01148]
[1766598696744,0.01145357,87309.0,87299.0,0.02293488]
[1766598697463,0.01145344,87310.0,87300.0,0.01145475]
[1766598697736,0.1177,87311.0,87301.0,0.01145462]
[1766598697930,0.06874591,87312.0,87301.0,0.01145462]
[1766598697931,0.01148,87312.0,87303.0,0.06872599]
[1766598698134,0.01148,87312.0,87304.0,0.01145422]
[1766598698355,0.01145331,87311.0,87299.0,0.01148]
[1766598698642,0.01145331,87311.0,87301.0,0.06872769]
[1766598698818,0.01145357,87309.0,87299.0,0.02293488]
[1766598699029,0.01145331,87311.0,87302.0,0.01145449]
[1766598699235,0.1177,87321.0,87310.0,0.01145344]
[1766598699591,0.05726158,87319.0,87309.0,0.02293357]
[1766598699763,0.01145226,87319.0,87309.0,0.02293357]
[1766598699905,0.1177,87320.0,87310.0,0.06872036]
[1766598700109,0.1177,87320.0,87311.0,0.01145331]
[1766598700309,0.1177,87320.0,87319.0,0.01145226]
[1766598700310,0.00035419,87320.0,87319.0,0.01145226]
[1766598700538,0.00035419,87320.0,87317.0,0.01145252]
[1766598700714,0.11781,87330.0,87317.0,0.01145252]
[1766598700715,0.00011,87330.0,87326.0,0.06870804]
[1766598700914,0.00021618,87330.0,87325.0,0.01148]
[1766598701138,0.00021618,87330.0,87325.0,0.02293147]
[1766598701353,0.00021618,87330.0,87327.0,0.01145121]
[1766598701553,0.01144885,87345.0,87330.0,0.01145081]
[1766598701757,0.01144885,87345.0,87325.0,0.02293147]
[1766598701758,0.0114499,87337.0,87325.0,0.02293147]
[1766598701959,0.05724918,87338.0,87327.0,0.01145121]
[1766598702162,0.06869738,87340.0,87328.0,0.01145108]
[1766598702337,0.01144976,87338.0,87328.0,0.01145108]
[1766598702552,0.01144976,87338.0,87329.0,0.01145094]
[1766598702934,0.0114495,87340.0,87328.0,0.06870607]
[1766598703139,0.06869551,87342.0,87332.0,0.01145055]
[1766598703365,0.0114495,87340.0,87333.0,0.01148]
[1766598703571,0.01144937,87341.0,87333.0,0.01148]
[1766598703795,0.01144898,87344.0,87333.0,0.01148]